bitfinex/quotes_BTCUSD_20240617
["timestamp","ask_amount","ask_price","bid_price","bid_amount"]
[1718647926893,0.00085,66974.0,66973.0,1.05993202]
[1718647927093,0.00085,66974.0,66973.0,0.76130502]
[1718647927427,0.00085,66974.0,66973.0,0.28994914]
[1718647927627,0.00085,66974.0,66973.0,0.58857614]
[1718647927831,0.00085,66974.0,66973.0,0.14063614]
[1718647928400,0.00085,66974.0,66973.0,0.13693743]
[1718647928553,0.150161,66974.0,66973.0,0.025]
[1718647928754,0.150161,66974.0,66973.0,0.013]
[1718647928971,0.00085,66974.0,66960.0,0.32473072]
[1718647929141,0.00085,66974.0,66961.0,0.45558432]
[1718647929327,0.00085,66974.0,66973.0,0.014]
[1718647929776,0.298637,66971.0,66960.0,0.32473072]
[1718647930032,0.149338,66962.0,66961.0,0.00370495]
[1718647930231,0.149341,66961.0,66953.0,0.2488]
[1718647930436,0.149341,66961.0,66954.0,0.12769028]
[1718647930634,0.298686,66960.0,66954.0,0.00371165]
[1718647930952,0.149346,66959.0,66954.0,0.00371165]
[1718647931148,0.149348,66958.0,66949.0,0.000935]
[1718647931352,0.04024477,66961.0,66949.0,0.000935]
[1718647931560,0.18958477,66961.0,66950.0,0.00371165]
[1718647931755,0.07330528,66960.0,66951.0,0.298725]
[1718647931953,0.07330528,66960.0,66950.0,0.00371165]
[1718647931954,0.04024477,66961.0,66950.0,0.00371165]
[1718647932153,0.04024477,66961.0,66949.0,0.000935]
[1718647932355,0.04024477,66961.0,66954.0,0.07593072]
[1718647933012,0.001,66962.0,66955.0,0.00371165]
[1718647933179,0.002,66960.0,66955.0,0.00371165]
[1718647934623,0.300686,66960.0,66955.0,0.00371165]
[1718647934823,0.149348,66958.0,66949.0,0.000935]
[1718647935094,0.149354,66955.0,66954.0,0.001]
[1718647935249,0.5287584,66955.0,66954.0,0.001]
[1718647935435,0.149359,66953.0,66949.0,0.000935]
[1718647935656,1.0336124,66955.0,66949.0,0.000935]
[1718647935657,1.1829684,66955.0,66949.0,0.000935]
[1718647935880,0.02,66954.0,66949.0,0.000935]
[1718647936312,0.149358,66954.0,66949.0,0.000935]
[1718647936511,0.7349044,66955.0,66949.0,0.000935]
[1718647936512,0.6681,66955.0,66949.0,0.000935]
[1718647936743,0.6691,66955.0,66954.0,0.001]
[1718647937359,0.818454,66955.0,66954.0,0.001]
[1718647937554,0.6691,66955.0,66954.0,0.001]
[1718647937983,0.818454,66955.0,66954.0,0.001]
[1718647938171,0.97016656,66955.0,66949.0,0.000935]
[1718647938377,0.298717,66953.0,66949.0,0.001935]
[1718647938638,0.014,66954.0,66949.0,0.001935]
[1718647938839,0.3355,66955.0,66954.0,0.448068]
[1718647939028,0.298633,66972.0,66954.0,0.298712]
[1718647939029,0.3034,66972.0,66954.0,0.298712]
[1718647939152,0.21091388,66971.0,66962.0,0.149337]
[1718647939384,0.149325,66968.0,66957.0,0.07593072]
[1718647939582,0.149323,66969.0,66957.0,0.07593072]
[1718647939789,0.298645,66970.0,66958.0,0.00347338]
[1718647940030,0.15271256,66969.0,66958.0,0.00347338]
[1718647940202,0.149329,66967.0,66958.0,0.00347338]
[1718647940399,0.398651,66968.0,66958.0,0.00347338]
[1718647940658,0.263327,66968.0,66958.0,0.00347338]
[1718647940957,0.114,66968.0,66958.0,0.00347338]
[1718647941192,0.12527211,66967.0,66958.0,0.00347338]
[1718647941377,0.1,66966.0,66958.0,0.00347338]
[1718647941821,0.01385,66968.0,66961.0,0.02]
[1718647942232,0.01385,66968.0,66958.0,0.00347338]
[1718647942233,0.01385,66968.0,66962.0,0.001]
[1718647942449,0.01385,66968.0,66962.0,0.00447338]
[1718647942651,0.01385,66968.0,66962.0,0.149337]
[1718647942807,0.01385,66968.0,66963.0,0.15280838]
[1718647943005,0.012,66966.0,66963.0,0.00347338]
[1718647943229,0.012,66966.0,66962.0,0.149337]
[1718647943548,0.3355,66973.0,66963.0,0.00347338]
[1718647943779,0.012,66968.0,66963.0,0.00347338]
[1718647943986,0.012,66968.0,66963.0,0.149336]
[1718647944191,0.014,66967.0,66964.0,0.00347338]
[1718647944372,0.014,66967.0,66966.0,0.149329]
[1718647944580,0.014,66967.0,66966.0,0.447988]
[1718647944780,0.012,66968.0,66967.0,0.169327]
[1718647945081,0.012,66968.0,66967.0,0.47173929]
[1718647945082,0.026,66968.0,66967.0,0.47173929]
[1718647945391,0.014,66968.0,66967.0,0.77039329]
[1718647945652,0.014,66968.0,66967.0,1.19300737]
[1718647945827,0.014,66968.0,66967.0,0.77039329]
[1718647946239,0.027,66968.0,66967.0,0.77139329]
[1718647946531,0.013,66968.0,66967.0,0.77139329]
[1718647946732,0.35864482,66973.0,66970.0,0.149319]
[1718647946962,0.35864482,66973.0,66972.0,0.447948]
[1718647947334,0.35864482,66973.0,66972.0,0.74658]
[1718647947544,0.10036524,66980.0,66973.0,0.44794]
[1718647947734,0.00036524,66980.0,66973.0,0.44794]
[1718647947936,0.00036524,66980.0,66973.0,0.149313]
[1718647948354,0.00036524,66980.0,66967.0,0.001]
[1718647948555,0.014,66973.0,66972.0,0.001]
[1718647949349,0.02585,66973.0,66972.0,0.001]
[1718647949773,0.01485,66973.0,66972.0,0.448948]
[1718647949970,0.01485,66973.0,66972.0,0.447948]
[1718647949971,0.00085,66973.0,66972.0,0.447948]
[1718647950174,0.01185,66973.0,66972.0,0.001]
[1718647950378,2.26381844,66973.0,66972.0,0.00470233]
[1718647950599,2.26381844,66973.0,66956.0,0.2629]
[1718647950600,0.149327,66967.0,66956.0,0.2629]
[1718647950807,0.149326,66968.0,66956.0,0.2629]
[1718647951008,0.1,66972.0,66956.0,0.2629]
[1718647951223,0.149322,66970.0,66956.0,0.2629]
[1718647951439,0.45136588,66971.0,66956.0,0.2629]
[1718647951440,0.12326333,66969.0,66956.0,0.2629]
[1718647951665,0.1,66969.0,66962.0,0.149337]
[1718647951856,0.1,66969.0,66961.0,0.14934]
[1718647952061,0.63911,66973.0,66968.0,0.298646]
[1718647952268,0.63911,66973.0,66967.0,0.298652]
[1718647952487,0.62511,66973.0,66965.0,0.07593072]
[1718647952701,0.75601021,66973.0,66963.0,0.000935]
[1718647952901,0.149321,66970.0,66963.0,0.000935]
[1718647953131,0.62511,66973.0,66963.0,0.000935]
[1718647953334,0.014,66969.0,66963.0,0.000935]
[1718647953664,0.014,66968.0,66967.0,0.149326]
[1718647953869,0.014,66968.0,66966.0,0.149328]
[1718647954066,0.014,66968.0,66964.0,0.22526272]
[1718647954267,0.62511,66973.0,66967.0,0.003692]
[1718647954469,0.014,66969.0,66964.0,0.07593072]
[1718647954877,0.014,66969.0,66965.0,0.003692]
[1718647955085,0.06447679,66972.0,66965.0,0.003692]
[1718647955270,0.06447679,66972.0,66963.0,0.000935]
[1718647955466,0.014,66968.0,66963.0,0.000935]
[1718647955907,0.014,66968.0,66964.0,0.00335636]
[1718647956892,0.33635,66973.0,66964.0,0.00335636]
[1718647957131,0.11561418,66972.0,66963.0,0.000935]
[1718647957344,0.12961418,66972.0,66963.0,0.000935]
[1718647957544,0.014,66972.0,66963.0,0.000935]
[1718647957841,0.33635,66973.0,66963.0,0.000935]
[1718647957992,0.33635,66973.0,66963.0,0.020935]
[1718647958201,0.014,66968.0,66963.0,0.000935]
[1718647958409,0.014,66968.0,66963.0,0.020935]
[1718647958615,0.014,66968.0,66964.0,0.003692]
[1718647959209,0.049035,66968.0,66963.0,0.000935]
[1718647959428,0.035035,66968.0,66963.0,0.000935]
[1718647959609,0.149327,66967.0,66963.0,0.000935]
[1718647959827,0.298654,66967.0,66963.0,0.000935]
[1718647960034,0.149325,66968.0,66963.0,0.000935]
[1718647960263,0.298656,66967.0,66963.0,0.000935]
[1718647960435,0.149331,66965.0,66963.0,0.000935]
[1718647960637,0.014,66968.0,66963.0,0.000935]
[1718647960840,0.163326,66968.0,66963.0,0.000935]
[1718647961043,0.014,66968.0,66963.0,0.000935]
[1718647961287,0.014,66967.0,66963.0,0.000935]
[1718647961844,0.149329,66967.0,66963.0,0.000935]
[1718647962115,0.014,66968.0,66963.0,0.000935]
[1718647962397,0.163327,66967.0,66963.0,0.000935]
[1718647962598,0.014,66967.0,66963.0,0.000935]
[1718647962800,0.14933,66966.0,66963.0,0.000935]
[1718647963005,0.149331,66965.0,66963.0,0.000935]
[1718647963151,0.014,66968.0,66963.0,0.000935]
[1718647963152,0.149333,66964.0,66963.0,0.000935]
[1718647963758,0.028,66968.0,66963.0,0.000935]
[1718647963966,0.44799,66966.0,66963.0,0.000935]
[1718647964170,0.149331,66965.0,66963.0,0.000935]
[1718647964493,0.149329,66967.0,66963.0,0.000935]
[1718647964680,0.149331,66966.0,66963.0,0.000935]
[1718647964878,0.149333,66964.0,66963.0,0.000935]
[1718647965274,0.0774625,66966.0,66963.0,0.000935]
[1718647965479,0.014,66965.0,66963.0,0.000935]
[1718647965695,0.139131,66964.0,66963.0,0.000935]
[1718647965929,0.448,66964.0,66963.0,0.000935]
[1718647966574,0.014,66966.0,66963.0,0.000935]
[1718647966793,0.448,66964.0,66963.0,0.000935]
[1718647967007,0.04050653,66964.0,66963.0,0.000935]
[1718647967414,0.18983953,66964.0,66963.0,0.000935]
[1718647967645,0.05450653,66964.0,66963.0,0.000935]
[1718647967841,0.028,66964.0,66963.0,0.000935]
[1718647969152,0.177333,66964.0,66963.0,0.000935]
[1718647969697,0.028,66964.0,66963.0,0.000935]
[1718647970329,0.028,66964.0,66963.0,0.150271]
[1718647970450,0.028,66964.0,66963.0,0.000935]
[1718647971274,0.028,66964.0,66963.0,0.81617188]
[1718647971500,0.028,66964.0,66963.0,1.87336107]
[1718647971704,0.00085,66973.0,66972.0,1.639912]
[1718647971904,0.00085,66973.0,66972.0,1.98714088]
[1718647972136,0.00085,66973.0,66972.0,1.99083874]
[1718647972364,0.00085,66973.0,66972.0,1.5416681]
[1718647972513,0.00085,66973.0,66972.0,1.7361681]
[1718647972920,0.00085,66973.0,66972.0,1.86010999]
[1718647973121,0.00085,66973.0,66972.0,1.7361681]
[1718647973348,0.00085,66973.0,66972.0,1.81613774]
[1718647973632,0.00035,66973.0,66972.0,1.81613774]
[1718647974231,0.00135,66973.0,66972.0,1.07694274]
[1718647974531,0.00135,66973.0,66972.0,1.09494274]
[1718647974735,0.00035,66973.0,66972.0,1.09494274]
[1718647974946,0.00135,66973.0,66972.0,0.94862674]
[1718647975161,0.00135,66973.0,66972.0,1.69520674]
[1718647975576,0.00235,66973.0,66972.0,1.70920674]
[1718647975816,0.00235,66973.0,66972.0,2.00783874]
[1718647977555,0.00235,66973.0,66972.0,1.41057474]
[1718647977975,0.00235,66973.0,66972.0,2.00783874]
[1718647979398,0.00235,66973.0,66972.0,1.70920674]
[1718647979722,0.00235,66973.0,66972.0,2.00783874]
[1718647980321,0.00235,66973.0,66972.0,1.70920674]
[1718647980862,0.00235,66973.0,66972.0,2.00783874]
[1718647981693,0.00235,66973.0,66972.0,1.71014174]
[1718647982120,0.00235,66973.0,66972.0,2.00877374]
[1718647982898,0.00235,66973.0,66972.0,2.06077374]
[1718647983109,0.00235,66973.0,66972.0,2.58332409]
[1718647983302,0.00085,66974.0,66973.0,0.968567]
[1718647983507,0.00085,66974.0,66973.0,2.21097195]
[1718647983713,0.00085,66974.0,66973.0,2.5123944]
[1718647983939,4.6459,66977.0,66973.0,2.5123944]
[1718647983940,4.6459,66977.0,66976.0,1.858349]
[1718647984145,4.6459,66977.0,66976.0,2.73222423]
[1718647984363,1.491,66977.0,66976.0,3.05662023]
[1718647984650,0.05,66999.0,66987.0,0.121]
[1718647984850,0.05,66999.0,66987.0,1.59404088]
[1718647985042,0.05,66999.0,66987.0,2.51232114]
[1718647985321,0.05,66999.0,66987.0,3.10945114]
[1718647985535,0.05,66999.0,66987.0,2.81088614]
[1718647986635,0.05,66999.0,66987.0,3.10945114]
[1718647986851,0.05,66999.0,66987.0,2.81088614]
[1718647987218,0.05,66999.0,66995.0,0.619793]
[1718647987424,0.05,66999.0,66995.0,1.07105088]
[1718647987634,0.05,66999.0,66995.0,1.66796204]
[1718647987804,0.05,66999.0,66995.0,1.56866549]
[1718647988006,0.05,66999.0,66995.0,1.27013649]
[1718647988217,0.05,66999.0,66995.0,1.22013649]
[1718647989227,0.05,66999.0,66995.0,1.23413649]
[1718647989415,0.05,66999.0,66995.0,0.93560749]
[1718647990600,0.05,66999.0,66995.0,1.22013649]
[1718647991061,0.05,66999.0,66995.0,1.23413649]
[1718647991467,0.05,66999.0,66995.0,0.93560749]
[1718647992247,0.05,66999.0,66995.0,1.23413649]
[1718647993034,0.05,66999.0,66995.0,0.93560749]
[1718647993449,0.05,66999.0,66995.0,1.23413649]
[1718647993648,0.05,66999.0,66995.0,1.35013649]
[1718647993824,0.05,66999.0,66995.0,1.69866549]
[1718647994025,0.05,66999.0,66995.0,2.56676061]
[1718647994271,0.05,66999.0,66995.0,2.26823161]
[1718647994479,0.05,66999.0,66995.0,2.56676061]
[1718647994725,0.05,66999.0,66995.0,2.55276061]
[1718647994929,0.05,66999.0,66995.0,2.53876061]
[1718647995282,0.05,66999.0,66995.0,2.60276061]
[1718647995486,0.05,66999.0,66995.0,2.29023161]
[1718647995704,0.05,66999.0,66995.0,2.19023161]
[1718647995940,0.05,66999.0,66995.0,2.30423161]
[1718647996345,0.05,66999.0,66995.0,2.02373161]
[1718647996553,0.05,66999.0,66995.0,2.21623161]
[1718647996771,0.05,66999.0,66995.0,1.86770261]
[1718647996977,0.05,66999.0,66995.0,1.18680749]
[1718647997182,0.05,66999.0,66995.0,1.31068486]
[1718647997380,0.05,66999.0,66995.0,1.62321386]
[1718647998314,0.05,66999.0,66995.0,1.32468486]
[1718647998511,0.05,66999.0,66995.0,1.62321386]
[1718647998714,0.05,66999.0,66995.0,1.05348486]
[1718647998919,0.05,66999.0,66995.0,1.37201386]
[1718647999326,0.05,66999.0,66995.0,1.67254286]
[1718647999980,0.05,66999.0,66995.0,1.67054286]
[1718648000173,0.05,66999.0,66995.0,1.67254286]
[1718648000375,0.05,66999.0,66995.0,2.06864286]
[1718648001037,0.05,66999.0,66995.0,2.51717186]
[1718648001153,0.05,66999.0,66995.0,2.11864286]
[1718648001357,0.05,66999.0,66995.0,2.21854286]
[1718648001560,0.05,66999.0,66995.0,2.46013524]
[1718648002184,0.05,66999.0,66995.0,2.99446833]
[1718648002424,0.05,66999.0,66995.0,2.69593933]
[1718648003626,0.05,66999.0,66995.0,2.71330517]
[1718648003840,0.05,66999.0,66995.0,2.61330517]
[1718648004211,0.05,66999.0,66995.0,2.68530517]
[1718648004422,0.05,66999.0,66995.0,2.66793933]
[1718648004642,0.05,66999.0,66995.0,2.71330546]
[1718648004850,0.00048785,66996.0,66995.0,2.68193933]
[1718648005053,0.00048785,66996.0,66995.0,2.38677731]
[1718648005297,0.00048785,66996.0,66995.0,2.68193933]
[1718648005624,0.00048785,66996.0,66995.0,2.59593933]
[1718648005804,0.00048785,66996.0,66995.0,2.61330963]
[1718648006009,0.00048785,66996.0,66995.0,1.37190624]
[1718648006240,0.00048785,66996.0,66995.0,1.05937724]
[1718648006649,0.00048785,66996.0,66995.0,0.29330208]
[1718648007012,0.00048785,66996.0,66995.0,0.42586263]
[1718648007163,0.00048785,66996.0,66995.0,0.74439163]
[1718648007367,0.00048785,66996.0,66995.0,1.1655929]
[1718648007776,0.00048785,66996.0,66995.0,1.05956271]
[1718648007977,0.00048785,66996.0,66995.0,1.02556271]
[1718648008198,0.00048785,66996.0,66995.0,1.05956271]
[1718648008623,0.00048785,66996.0,66995.0,0.14051183]
[1718648008965,0.32538785,66996.0,66995.0,0.13286975]
[1718648009167,0.32538785,66996.0,66995.0,0.11886975]
[1718648009591,0.32538785,66996.0,66995.0,0.13286975]
[1718648009808,0.32538785,66996.0,66995.0,0.11886975]
[1718648010050,0.59168785,66996.0,66995.0,0.11886975]
[1718648010258,0.59168785,66996.0,66995.0,0.13286975]
[1718648010459,0.59168785,66996.0,66995.0,0.177264]
[1718648010656,0.59168785,66996.0,66995.0,0.028]
[1718648011079,0.59168785,66996.0,66995.0,0.014]
[1718648011279,0.59168785,66996.0,66995.0,0.028]
[1718648011434,0.59168785,66996.0,66995.0,0.014]
[1718648012658,0.5915082,66996.0,66995.0,0.014]
[1718648012867,0.5915082,66996.0,66995.0,0.163264]
[1718648013059,0.5915082,66996.0,66995.0,0.177264]
[1718648013262,0.3252082,66996.0,66995.0,0.475793]
[1718648013483,0.3252082,66996.0,66995.0,0.028935]
[1718648013647,0.3252082,66996.0,66995.0,0.014935]
[1718648013844,0.3260582,66996.0,66995.0,0.014935]
[1718648014068,0.3260582,66996.0,66995.0,0.028935]
[1718648017514,0.3260582,66996.0,66995.0,0.178199]
[1718648018311,0.3260582,66996.0,66995.0,0.476728]
[1718648018871,0.3260582,66996.0,66995.0,0.178199]
[1718648019456,0.3260582,66996.0,66995.0,0.476728]
[1718648020278,0.3260582,66996.0,66995.0,0.028935]
[1718648020812,0.3260582,66996.0,66995.0,0.178199]
[1718648021427,0.3260582,66996.0,66995.0,0.028935]
[1718648021725,0.92655776,66996.0,66995.0,0.028935]
[1718648021948,0.47877076,66996.0,66995.0,0.028935]
[1718648022527,0.47877076,66996.0,66968.0,0.209074]
[1718648022528,0.5687,66981.0,66968.0,0.209074]
[1718648022725,0.02,66980.0,66968.0,0.059751]
[1718648023045,0.5687,66981.0,66971.0,0.149317]
[1718648023290,0.5687,66981.0,66972.0,0.15025]
[1718648023453,0.5687,66981.0,66973.0,0.07859909]
[1718648023789,0.5687,66981.0,66979.0,0.149299]
[1718648023929,0.5687,66981.0,66972.0,0.000935]
[1718648024116,0.776867,66981.0,66972.0,0.000935]
[1718648024535,0.776867,66981.0,66973.0,0.00266837]
[1718648025289,0.780867,66981.0,66973.0,0.00266837]
[1718648025495,0.5727,66981.0,66974.0,0.07593072]
[1718648025704,0.735996,66981.0,66974.0,0.07593072]
[1718648025911,0.735996,66981.0,66975.0,0.00271011]
[1718648025912,0.5827,66981.0,66975.0,0.00271011]
[1718648026116,0.2228976,66980.0,66972.0,0.000935]
[1718648026340,0.1493,66979.0,66972.0,0.000935]
[1718648026543,0.149311,66974.0,66973.0,0.00371011]
[1718648026747,0.298609,66978.0,66972.0,0.000935]
[1718648026748,0.149309,66976.0,66972.0,0.000935]
[1718648026969,0.298616,66976.0,66972.0,0.000935]
[1718648027171,0.44794,66973.0,66972.0,0.000935]
[1718648027374,0.0735996,66980.0,66973.0,0.001]
[1718648027375,0.298626,66974.0,66973.0,0.001]
[1718648027585,0.149311,66974.0,66973.0,0.001]
[1718648027963,0.14931,66975.0,66972.0,0.000935]
[1718648028204,0.44794,66973.0,66972.0,0.000935]
[1718648028413,0.149313,66973.0,66972.0,0.000935]
[1718648028615,0.476913,66973.0,66972.0,0.000935]
[1718648028819,0.3276,66973.0,66972.0,0.000935]
[1718648028988,0.77554,66973.0,66972.0,0.000935]
[1718648029200,0.298632,66972.0,66954.0,0.37464272]
[1718648029401,0.149332,66965.0,66955.0,0.6083132]
[1718648029535,0.149332,66965.0,66955.0,0.1554938]
[1718648029735,1.527281,66973.0,66955.0,0.00276492]
[1718648029736,0.149337,66963.0,66955.0,0.00276492]
[1718648029980,0.0149337,66962.0,66955.0,0.00276492]
[1718648030181,0.3166,66961.0,66955.0,0.00276492]
[1718648030847,0.2491,66960.0,66955.0,0.00276492]
[1718648031017,0.2491,66960.0,66949.0,0.000935]
[1718648031175,0.2491,66960.0,66950.0,0.298728]
[1718648031372,0.2491,66960.0,66949.0,0.15366388]
[1718648031597,0.2491,66960.0,66953.0,0.07593072]
[1718648031799,0.2491,66960.0,66953.0,0.22528772]
[1718648032015,0.2491,66960.0,66954.0,0.00284819]
[1718648032255,0.2491,66960.0,66955.0,0.001]
[1718648032547,0.3166,66961.0,66957.0,0.02]
[1718648032729,0.3312,66968.0,66959.0,0.02]
[1718648032905,0.3312,66968.0,66956.0,0.07593072]
[1718648032906,0.149334,66964.0,66956.0,0.07593072]
[1718648033107,0.149335,66964.0,66951.0,0.149361]
[1718648033326,0.29866,66966.0,66952.0,0.149359]
[1718648033505,0.001,66960.0,66953.0,0.08893072]
[1718648033703,0.001,66960.0,66953.0,0.23828872]
[1718648033937,0.001,66960.0,66949.0,0.299669]
[1718648033938,0.2598,66959.0,66954.0,0.00285157]
[1718648034137,0.2598,66959.0,66953.0,0.149358]
[1718648034339,0.2598,66959.0,66955.0,0.00336969]
[1718648034550,0.2598,66959.0,66950.0,0.298728]
[1718648034551,0.3007134,66959.0,66952.0,0.149359]
[1718648034733,0.2598,66959.0,66956.0,0.0033695]
[1718648034934,0.2598,66959.0,66955.0,0.012]
[1718648035153,0.2598,66959.0,66957.0,0.0033695]
[1718648035335,0.2598,66959.0,66955.0,0.012]
[1718648035336,0.2598,66959.0,66953.0,0.149358]
[1718648035595,0.2598,66959.0,66956.0,0.001]
[1718648035844,0.2608,66959.0,66955.0,0.012]
[1718648036267,0.2608,66959.0,66956.0,0.0033695]
[1718648036480,0.2608,66959.0,66955.0,0.013]
[1718648036687,0.2598,66959.0,66949.0,0.000935]
[1718648036885,0.2608,66959.0,66956.0,0.0163695]
[1718648037031,0.2618,66959.0,66956.0,0.013]
[1718648037213,0.2618,66959.0,66957.0,0.0033695]
[1718648038430,0.2608,66959.0,66956.0,0.013]
[1718648038708,0.2598,66959.0,66949.0,0.1503]
[1718648038915,0.2608,66959.0,66955.0,0.012]
[1718648039087,0.3546813,66959.0,66957.0,0.00337803]
[1718648039318,0.3156,66958.0,66949.0,0.013935]
[1718648039520,0.3156,66958.0,66949.0,0.000935]
[1718648039722,0.3156,66958.0,66956.0,0.025]
[1718648040054,0.3156,66958.0,66956.0,0.012]
[1718648040307,0.3156,66958.0,66957.0,0.00337822]
[1718648040518,0.3156,66958.0,66957.0,0.01637822]
[1718648040723,0.37754577,66958.0,66949.0,0.1503]
[1718648041104,0.37754577,66958.0,66950.0,0.15274117]
[1718648041304,0.37754577,66958.0,66950.0,0.00337617]
[1718648041715,0.3156,66958.0,66957.0,0.448048]
[1718648041935,0.2488,66964.0,66960.0,0.02]
[1718648042150,0.3161,66966.0,66959.0,0.298687]
[1718648042329,0.001,66958.0,66957.0,0.448047]
[1718648042728,0.015,66958.0,66957.0,0.448047]
[1718648042993,0.014,66958.0,66957.0,0.448047]
[1718648043132,0.014,66958.0,66957.0,0.448048]
[1718648043362,0.014,66958.0,66957.0,0.746747]
[1718648043563,0.014,66958.0,66956.0,0.149351]
[1718648043877,0.014,66964.0,66953.0,0.298713]
[1718648043878,0.3161,66966.0,66954.0,0.29871]
[1718648044137,0.3301,66966.0,66959.0,0.001]
[1718648044565,0.3301,66966.0,66961.0,0.149339]
[1718648045035,0.3301,66966.0,66961.0,0.29868]
[1718648045284,0.00086,66961.0,66959.0,0.001]
[1718648045505,0.00086,66961.0,66960.0,0.149342]
[1718648045959,0.00086,66961.0,66958.0,0.149347]
[1718648046434,0.032556,66961.0,66956.0,0.009]
[1718648046653,0.032556,66961.0,66951.0,0.149361]
[1718648046882,0.001,66958.0,66956.0,0.012]
[1718648048090,0.032556,66961.0,66953.0,0.149357]
[1718648048294,0.032556,66961.0,66949.0,0.000935]
[1718648048466,0.032556,66961.0,66950.0,0.149363]
[1718648048707,0.032556,66961.0,66949.0,0.000935]
[1718648048708,0.032556,66961.0,66951.0,0.149362]
[1718648048919,0.032556,66961.0,66949.0,0.000935]
[1718648049090,0.0480564,66960.0,66956.0,0.001]
[1718648049543,0.2615,66959.0,66949.0,0.000935]
[1718648049743,0.3002,66958.0,66949.0,0.000935]
[1718648049949,0.3002,66958.0,66950.0,0.00471967]
[1718648050154,0.07799574,66957.0,66950.0,0.001]
[1718648050431,0.448087,66951.0,66950.0,0.00471967]
[1718648050639,0.02,66955.0,66950.0,0.00471967]
[1718648050640,0.02,66955.0,66950.0,0.00371967]
[1718648050856,0.5617,66956.0,66949.0,0.010935]
[1718648051080,0.31002517,66955.0,66949.0,0.010935]
[1718648051293,0.31002517,66955.0,66953.0,0.149358]
[1718648051507,0.31002517,66955.0,66952.0,0.29872]
[1718648051727,0.5617,66956.0,66954.0,0.00373363]
[1718648051936,0.5617,66956.0,66949.0,0.022935]
[1718648051937,0.09207816,66955.0,66949.0,0.010935]
[1718648052139,0.3100069,66954.0,66949.0,0.010935]
[1718648052345,0.3300069,66954.0,66949.0,0.001935]
[1718648052558,0.4593649,66953.0,66950.0,0.004]
[1718648052732,0.150362,66951.0,66950.0,0.004]
[1718648053000,0.4603689,66951.0,66950.0,0.004]
[1718648053262,0.46271946,66951.0,66949.0,0.001935]
[1718648053494,0.3100069,66950.0,66949.0,0.001935]
[1718648053701,0.4593719,66950.0,66949.0,0.000935]
[1718648053911,0.61208446,66950.0,66949.0,0.000935]
[1718648054599,0.91081446,66950.0,66949.0,0.000935]
[1718648054848,0.92481446,66950.0,66949.0,0.001935]
[1718648055878,1.22354446,66950.0,66949.0,0.001935]
[1718648056294,1.37627334,66950.0,66949.0,0.001935]
[1718648056503,0.47673578,66950.0,66949.0,0.001935]
[1718648056705,0.3240069,66950.0,66949.0,0.001935]
[1718648057539,0.3240069,66950.0,66949.0,0.74877]
[1718648057746,0.014,66950.0,66949.0,0.450036]
[1718648057916,0.014,66950.0,66949.0,0.75253423]
[1718648058788,0.32399294,66950.0,66949.0,0.00569923]
[1718648058995,0.32399294,66950.0,66949.0,0.30443323]
[1718648059197,0.014,66950.0,66949.0,0.00569923]
[1718648059408,0.32399705,66950.0,66949.0,0.15506623]
[1718648059818,0.32399705,66950.0,66949.0,0.77253423]
[1718648060025,0.32399705,66950.0,66949.0,1.07126823]
[1718648060026,0.014,66950.0,66949.0,1.07126823]
[1718648060228,0.014,66950.0,66949.0,0.45380023]
[1718648060353,0.028,66950.0,66949.0,0.45380023]
[1718648060567,0.028,66950.0,66949.0,0.00569923]
[1718648060771,0.3552,66950.0,66949.0,0.00569923]
[1718648061000,0.3552,66950.0,66949.0,0.001935]
[1718648061001,2.26362854,66950.0,66949.0,0.001935]
[1718648061200,2.18090654,66950.0,66949.0,0.001935]
[1718648061412,2.32797001,66950.0,66949.0,0.001935]
[1718648062205,2.31397001,66950.0,66949.0,0.000935]
[1718648062667,3.49134701,66950.0,66949.0,0.001935]
[1718648062872,3.88521596,66950.0,66949.0,0.001935]
[1718648063094,3.87121596,66950.0,66949.0,0.000935]
[1718648063406,3.85721596,66950.0,66949.0,0.000935]
[1718648063759,4.16994596,66950.0,66949.0,0.000935]
[1718648063976,0.149412,66929.0,66928.0,0.009405]
[1718648064182,0.31000266,66930.0,66928.0,0.00936478]
[1718648064416,0.31000266,66929.0,66928.0,0.00936478]
[1718648064848,0.5476,66937.0,66928.0,0.00936478]
[1718648065054,0.31008554,66936.0,66928.0,0.00936478]
[1718648065275,0.31008554,66936.0,66929.0,0.00353174]
[1718648065482,0.31008554,66936.0,66928.0,0.00936478]
[1718648065985,0.001,66929.0,66928.0,0.00936478]
[1718648066205,0.298796,66936.0,66928.0,0.00936478]
[1718648066371,0.4628266,66935.0,66928.0,0.00936478]
[1718648066516,0.44692928,66934.0,66928.0,9.00936478]
[1718648066719,0.31009772,66933.0,66928.0,9.00936478]
[1718648066920,0.149405,66932.0,66928.0,9.00936478]
[1718648067125,0.31009772,66931.0,66928.0,9.00936478]
[1718648067333,0.32009772,66930.0,66928.0,9.00936478]
[1718648067533,0.31009772,66929.0,66928.0,9.00936478]
[1718648067989,0.15272888,66934.0,66928.0,9.00936478]
[1718648068146,0.3101067,66933.0,66928.0,9.00936478]
[1718648068347,0.012,66932.0,66928.0,9.00936478]
[1718648068571,0.456912,66929.0,66928.0,9.00936478]
[1718648068751,0.91974758,66929.0,66928.0,9.00936478]
[1718648069908,0.92074758,66929.0,66928.0,9.01036478]
[1718648070416,0.77133558,66929.0,66928.0,9.01036478]
[1718648070651,0.6186067,66929.0,66928.0,9.01036478]
[1718648070855,0.001,66929.0,66928.0,9.01036478]
[1718648071030,0.002,66929.0,66928.0,9.01036478]
[1718648073028,0.60296488,66929.0,66928.0,9.01036478]
[1718648073228,1.03314841,66929.0,66928.0,9.01036478]
[1718648073435,1.33192141,66929.0,66928.0,9.01036478]
[1718648073669,2.10328541,66929.0,66928.0,9.01036478]